Cogmind - Beta 15 @@@ ROGUE MODE // 2025.07.26 @ 01:31:10 Player: cptwinky Result: Escaped! Performance ------------- Evolutions (9) 4500 Regions Visited (22) 4400 Robots Destroyed (359) 1795 Value Destroyed (16954) 16954 Prototype IDs (57) 1140 Alien Tech Used (3) 600 Bonus (9320) 9320 TOTAL SCORE: 38709 Bonus ------- Triggered High Security 500 High Alert Combat Kills 3716 Follower Combat Kills 1261 Registered with UFD 300 Met Optimus in HQ 500 Met Data Miner 300 Met Zhirov 300 Win 3000 Friendly Fire -557 Cogmind --------- Core Integrity 1196/1600 Matter 280/300 Energy 11/100 System Corruption 2% Temperature Cool (2) Movement Hovering (60) Location To Epsilon Eridani Parts ------- > --- POWER (2) -------- (None) > --- PROPULSION (6) --- Experimental Gyrokinetic Inverter > --- UTILITY (16) ----- Enhanced Optical Array Advanced Signal Interpreter Partition Strike Chip Advanced Targeting Computer Experimental Core Analyzer Graphene Brace Ghost Barrier > --- WEAPON (2) ------- Heavy Neutron Cannon > --- INVENTORY (5) ---- Medium Storage Unit Enhanced Nova Cannon Heavy Gauss Cannon Peak State ------------ > --- POWER ------------ Vortex Chain Reactor > --- PROPULSION ------- Overtuned Armored Exoskeleton Overtuned Armored Exoskeleton > --- UTILITY ---------- Scrap Suit Advanced Cooling System Huge Storage Unit Enhanced Optical Array Advanced Signal Interpreter Partition Strike Chip Advanced Targeting Computer Tactical Coordination Suite Experimental Core Analyzer Advanced Transmission Jammer Makeshift Heavy Armor Plating Ghost Barrier > --- WEAPON ----------- Enhanced Nova Cannon RU-N14's Throwing Claymores v3 > --- INVENTORY -------- Overtuned Antimatter Reactor Quantum Reactor Light Quantum Reactor Overtuned Armored Exoskeleton Overtuned Armored Exoskeleton Centrium Leg Scrap Suit Advanced Energy Well Matter Compressor Advanced Sensor Array Long-range Tractor Beam Mapping Drone Bay Overtuned Phase Cannon Overtuned Bore Cannon Overtuned Bore Cannon Rocket Array Advanced Datajack Improved Plasma Cutter Great Maul Fire Trap [Rating: 171] Favorites ----------- Power Subdweller Power Source Engine Subdweller Power Source Power Core Neutrino Core Reactor Overtuned Antimatter Reactor Propulsion Overtuned Armored Exoskeleton Treads Light Treads Leg Overtuned Armored Exoskeleton Wheel Overtuned Huge Scrapsphere Hover Unit Experimental Gyrokinetic Inverter Utility Scrap Suit Device Scrap Suit Storage Huge Storage Unit Processor Improved Signal Interpreter Hackware Hacking Suite Protection Enhanced Scrap Shield Weapon Cooled Plasma Cannon Energy Gun Subdweller Laser Energy Cannon Cooled Plasma Cannon Ballistic Gun Subdweller Machine Gun Ballistic Cannon Antimatter Cannon Launcher Rocket Array Special Weapon Mining Laser Impact Weapon Great Maul Special Melee Weapon Datajack Build | -11 -10 -10 -8 -8 -6 -6 -6 -6 -5 -5 -5 -5 -5 -4 -4 -4 -4 -4 -3 -3 -2 -1 ------- Run | Yrd Mat Sub Rec Scr Fac Low Low Dat Pro Fac Upp Upp Zhi Pro Fac Upp Upp War Pro Res Res Acc Slots Evolved 18 | . . . . . 8 . . . . 2 . . . . 2 . . . . 2 2 2 Power 1 | . . . . . 1 . . . . . . . . . . . . . . . . . Propulsion 4 | . . . . . 2 . . . . 2 . . . . . . . . . . . . Utility 13 | . . . . . 5 . . . . . . . . . 2 . . . . 2 2 2 Weapon . | . . . . . . . . . . . . . . . . . . . . . . . Parts Attached 162 | 6 3 11 5 3 47 4 . . . 12 5 2 4 1 26 4 . 5 1 2 18 3 Power 27 | 1 . 3 . . 8 1 . . . 1 1 1 1 . 4 1 . 1 . . 3 1 Engine 12 | 1 . 3 . . 6 1 . . . . . . . . . 1 . . . . . . Core 6 | . . . . . 1 . . . . . 1 1 . . 3 . . . . . . . Reactor 9 | . . . . . 1 . . . . 1 . . 1 . 1 . . 1 . . 3 1 Propulsion 19 | 2 . 1 2 3 5 . . . . 2 . . . . 3 . . . . . . 1 Treads 8 | 2 . . 2 1 3 . . . . . . . . . . . . . . . . . Leg 5 | . . . . . . . . . . 2 . . . . 3 . . . . . . . Wheel 5 | . . 1 . 2 2 . . . . . . . . . . . . . . . . . Hover 1 | . . . . . . . . . . . . . . . . . . . . . . 1 Flight . | . . . . . . . . . . . . . . . . . . . . . . . Utility 73 | 1 2 1 1 . 21 3 . . . 5 3 1 3 1 13 2 . 3 1 2 9 1 Device 37 | . . 1 . . 7 1 . . . 3 3 1 2 1 6 1 . 2 . 1 7 1 Storage 7 | 1 1 . 1 . 2 . . . . 1 . . 1 . . . . . . . . . Processor 8 | . . . . . 2 1 . . . . . . . . . 1 . 1 1 1 1 . Hackware 13 | . . . . . 7 . . . . 1 . . . . 4 . . . . . 1 . Protection 8 | . 1 . . . 3 1 . . . . . . . . 3 . . . . . . . Artifact . | . . . . . . . . . . . . . . . . . . . . . . . Weapon 43 | 2 1 6 2 . 13 . . . . 4 1 . . . 6 1 . 1 . . 6 . Energy Gun 2 | 1 . . 1 . . . . . . . . . . . . . . . . . . . Energy Cannon 11 | . . . . . 3 . . . . 1 . . . . 4 . . . . . 3 . Ballistic Gun 10 | 1 . 4 1 . 1 . . . . . . . . . 1 . . . . . 2 . Ballistic Cannon 7 | . . 1 . . 3 . . . . 1 . . . . 1 1 . . . . . . Launcher 5 | . . . . . 5 . . . . . . . . . . . . . . . . . Special Weapon 6 | . 1 . . . 1 . . . . 1 1 . . . . . . 1 . . 1 . Impact Weapon 1 | . . . . . . . . . . 1 . . . . . . . . . . . . Slashing Weapon . | . . . . . . . . . . . . . . . . . . . . . . . Piercing Weapon . | . . . . . . . . . . . . . . . . . . . . . . . Special Melee Weapon 1 | . . 1 . . . . . . . . . . . . . . . . . . . . Unidentified Prototypes 22 | . . . . . 5 1 . . . . . 1 4 1 2 . . 5 . . 2 1 Corrupted Parts 4 | . . . . . 2 . . . . . . . . . 1 . . . . . 1 . System Corruption 18 | . . . . . 5 . . . . . . . . . 4 . . . . . 9 . Parts Lost 51 | . . 4 2 . 7 . . . . . 1 . . . 13 . . . . . 17 7 Power 12 | . . 1 . . 3 . . . . . . . . . 2 . . . . . 5 1 Propulsion 5 | . . 1 1 . . . . . . . . . . . . . . . . . 1 2 Utility 24 | . . 1 . . 4 . . . . . 1 . . . 7 . . . . . 7 4 Weapon 10 | . . 1 1 . . . . . . . . . . . 4 . . . . . 4 . Highest Loss Streak 8 | . . 3 2 . 3 . . . . . 1 . . . 5 . . . . . 8 6 To Critical Strikes 2 | . . . . . . . . . . . . . . . 1 . . . . . 1 . Average Backups 17 | 5 10 14 15 21 19 18 18 18 17 18 18 18 20 20 19 17 17 17 18 17 16 4 Power . | . 1 . . . . . . . . 1 2 2 2 2 2 1 1 1 1 1 1 . Propulsion 2 | 3 4 4 3 4 1 3 3 3 3 2 2 1 1 1 1 2 2 2 2 2 2 . Utility 8 | . 2 4 9 14 11 8 8 8 7 8 7 8 10 9 9 7 7 7 8 7 5 1 Weapon 4 | 1 2 3 2 3 5 6 6 6 6 6 6 6 6 6 4 5 5 5 5 5 4 2 Tool/Special . | . . . . . . . . . . . . . . . . . . . . . . . Unused Backups 51 | . 1 7 2 2 10 2 3 . 2 2 2 1 . . 4 1 . 1 . . 8 3 Power 2 | . . . . . . . . . . . . . . . 1 . . . . . 1 . Propulsion 12 | . . 5 . 1 1 . . . . . . 1 . . 3 . . . . . 1 . Utility 24 | . 1 1 2 1 6 1 2 . 2 2 2 . . . . 1 . . . . 2 1 Weapon 9 | . . 1 . . 3 1 1 . . . . . . . . . . . . . 1 2 Tool/Special 4 | . . . . . . . . . . . . . . . . . . 1 . . 3 . Average Slot Usage (%) 78 | . 98 99 90 85 81 80 80 80 80 63 63 63 60 65 68 70 70 68 64 67 67 47 Engine 7 | . 14 13 14 14 8 12 13 13 13 7 1 . . . . 2 5 3 . . . . Core 1 | . . . . . . . . . . . 3 5 2 . 3 7 5 1 . . . . Reactor 2 | . . . . . 1 . . . . 3 5 5 8 11 6 . . 3 5 4 5 . Treads 8 | . 28 18 25 26 5 6 6 6 6 . . . . . . . . . . . . . Leg 4 | . . . . . . . . . . 10 11 11 11 11 10 10 10 10 10 9 8 5 Wheel 4 | . . 9 2 1 13 13 13 13 13 . . . . . . . . . . . . . Device 11 | . . 13 5 . 14 13 13 13 13 9 10 10 7 15 18 15 15 14 15 18 14 15 Storage 8 | . 14 14 14 14 6 6 6 6 6 5 5 5 5 5 5 5 5 5 5 4 3 . Processor 4 | . . . . . 2 5 6 6 6 5 5 5 5 5 5 9 10 11 15 17 20 19 Hackware 2 | . . . . . 6 . . . . 1 . . . . 6 5 5 3 . . 3 3 Protection 3 | . 12 . . . 5 6 6 6 6 5 5 4 5 5 4 5 5 5 5 4 2 . Energy Gun 2 | . 13 . 11 14 . . . . . . . . . . . . . . . . . . Energy Cannon 4 | . . . . . 3 6 6 6 6 6 10 10 11 9 7 5 5 5 5 4 4 . Ballistic Gun 6 | . 14 26 15 14 . . . . . . . . . . 1 4 5 4 . . . . Ballistic Cannon 2 | . . . 1 . 8 4 5 6 5 2 . . . 1 . . . . 4 4 2 . Peak Build Rating 171 | 6 8 14 15 21 82 84 84 84 84 109 109 109 112 119 132 125 122 139 142 150 171 121 Average Rating 74 | 5 7 11 14 17 66 83 83 83 83 105 108 106 106 117 122 122 122 126 139 149 152 97 On Entrance 83 | . 6 8 14 15 21 81 83 84 83 83 108 109 107 107 119 125 122 122 139 139 150 96 Naked Turns . | . . . . . . . . . . . . . . . . . . . . . . . Heaviest Build 171 | 12 30 34 53 53 147 149 143 143 143 146 149 149 148 169 171 153 150 160 165 165 170 14 Greatest Support 180 | 40 40 40 40 40 28 28 28 28 28 180 180 180 180 180 180 180 180 180 180 180 180 180 Greatest Overweight (x) 5 | . . 1 1 1 5 5 5 5 5 . . . . . 1 . . . . . 1 1 Average Overweight (x) 1 | . . . . 1 2 4 5 5 5 . . . . . . . . . . . . . Largest Inventory Capacity 25 | 8 15 15 25 25 25 25 25 25 25 25 25 25 25 25 25 25 25 25 25 25 25 5 Average Capacity 22 | 7 14 15 21 25 21 25 25 25 25 25 25 25 25 25 25 25 25 25 25 25 24 5 Most Carried 25 | 8 15 15 19 25 25 25 25 25 25 25 25 25 25 24 25 25 25 25 25 24 25 5 Average Carried 20 | 5 10 14 16 23 19 24 24 25 24 23 24 23 23 22 22 24 25 24 24 23 20 4 Final Capacity 25 | 8 15 15 25 25 25 25 25 25 25 25 25 25 25 25 25 25 25 25 25 25 5 5 Final Carried 25 | 8 15 15 19 25 25 25 25 25 24 25 25 22 24 23 25 25 25 25 25 24 4 3 Class Distribution -------------------- 31% | Scavenger-Scrapper 28% | Scrapper 23% | Mutant 10% | Scavenger-Mutant 4% | Hacker-Scrapper Dominant Class ---------------- Mutant | -10/Materials Scavenger-Mutant | -10/Subcaves Mutant | -8/Recycling Mutant | -8/Scraptown Scrapper | -6/Factory Scrapper | -6/Lower Caves Scrapper | -6/Lower Caves Scrapper | -6/Data Miner Scrapper | -5/Proximity Caves Scrapper | -5/Factory Scavenger-Scrapper | -5/Upper Caves Scavenger-Scrapper | -5/Upper Caves Scrapper | -5/Zhirov Scrapper | -4/Proximity Caves Scavenger-Scrapper | -4/Factory Scavenger-Scrapper | -4/Upper Caves Scavenger-Scrapper | -4/Upper Caves Scavenger-Scrapper | -4/Warlord Scavenger-Scrapper | -3/Proximity Caves Scavenger-Scrapper | -3/Research Scavenger-Scrapper | -2/Research Hacker-Mutant | -1/Access Resources | -11 -10 -10 -8 -8 -6 -6 -6 -6 -5 -5 -5 -5 -5 -4 -4 -4 -4 -4 -3 -3 -2 -1 ----------- Run | Yrd Mat Sub Rec Scr Fac Low Low Dat Pro Fac Upp Upp Zhi Pro Fac Upp Upp War Pro Res Res Acc Matter Collected 9821 | 305 363 291 369 10 2996 344 40 . 311 261 171 320 40 430 1531 381 32 . 314 27 1230 55 Remotely 185 | . . . . . . . . . . . . . . . 185 . . . . . . . Salvage Created 16403 | 162 538 254 559 . 3101 . 19 . 269 612 605 892 306 883 3830 737 99 . 679 79 2666 113 Parts 632 | 16 21 21 25 . 140 . . . 4 21 25 21 2 26 136 15 4 . 22 5 122 6 Haulers Intercepted 3 | . . . . . . . . . . . . 1 . . 2 . . . . . . . Recyclers Shooed 20 | . 3 . 3 . 7 . . . . 1 . . . . 3 . . . . . 3 . Parts Field Recycled . | . . . . . . . . . . . . . . . . . . . . . . . Retrieved Matter . | . . . . . . . . . . . . . . . . . . . . . . . Parts Self-Destructed 102 | . . 7 . . . 6 . . 3 . 12 13 1 18 . 13 3 . 26 . . . Prevented 10 | . . . . . . . 2 . 4 . . . . . . . . . 4 . . . Kills | -11 -10 -10 -8 -8 -6 -6 -6 -6 -5 -5 -5 -5 -5 -4 -4 -4 -4 -4 -3 -3 -2 -1 ------- Run | Yrd Mat Sub Rec Scr Fac Low Low Dat Pro Fac Upp Upp Zhi Pro Fac Upp Upp War Pro Res Res Acc Combat Hostiles Destroyed 274 | . 8 10 4 . 61 . . . 6 11 8 21 . 15 65 4 4 . 13 1 41 2 Melee 4 | . . . . . . . . . . 4 . . . . . . . . . . . . Guns 31 | . 7 10 4 . . . . . . . . . . . 7 . 1 . . . 2 . Cannons 156 | . . . . . 35 . . . 3 5 8 11 . 13 35 3 3 . 9 1 28 2 AOE 71 | . . . . . 24 . . . 3 . . 9 . 2 18 . . . 4 . 11 . Classes Destroyed 25 | 2 6 2 1 . 6 . 1 . 1 1 . 1 . . 2 . . . 2 . . . Worker 10 | 1 . . . . 4 . . . . . . . . . 4 . . . . . 1 . Builder 23 | . 1 . . . 13 . . . . . . . . . 7 . . . . . 2 . Tunneler 12 | 7 . . . . . . . . . . . . . . 2 . . . . . 3 . Hauler 3 | . . . . . . . . . . . . 1 . . 2 . . . . . . . Recycler 21 | . 3 . 5 . 8 . . . . . . . . . 2 . . . . . 3 . Minesweeper 3 | . . . . . . . 1 . . . . . . . . 2 . . . . . . Mechanic 4 | . . . . . 2 . . . . 1 . . . . . . . . . . 1 . Operator 4 | . 1 . . . 1 . . . . . . . . . 1 . . . . . 1 . Drone 1 | . . . . . . . . . . . . . . . . . . . 1 . . . Watcher 2 | . 1 . . . . . . . . . . . . . . . . . . . 1 . Swarmer 46 | . 3 3 . . 10 . . . . 5 2 8 . 2 4 . 4 . . . 5 . Saboteur 3 | . . . . . 2 . . . . . . . . . 1 . . . . . . . Grunt 105 | . 5 . . . 31 . . . 5 2 2 7 . 9 25 2 . . 2 . 15 . Brawler 7 | . . . . . 3 . . . . . . . . . 3 . . . 1 . . . Duelist 10 | . . . . . 2 . . . . . 1 . . . 3 . . . 3 . 1 . Protector 2 | . . . . . . . . . . . . . . . 1 . . . 1 . . . Sentry 25 | . . . 4 . 7 . . . 1 2 2 . . 1 5 . . . 1 1 1 . Demolisher 1 | . . . . . . . . . . . . . . . . . . . 1 . . . Hunter 26 | . . . . . 2 . . . . . 1 2 . 2 12 . . . . . 7 . Programmer 37 | . . . . . 4 . . . . 2 . . . 1 11 2 . . 3 . 12 2 Artisan 1 | . . 1 . . . . . . . . . . . . . . . . . . . . Subdweller 7 | . . 7 . . . . . . . . . . . . . . . . . . . . Scrapoid 1 | . . . . . . . . . . . . . . . 1 . . . . . . . Scraphulk 1 | . . . . . . . . . . 1 . . . . . . . . . . . . Decomposer 3 | . . . . . . . . . . . . . . . . 3 . . . . . . Packrat 3 | . . . . . . . . . . . . . . . . 3 . . . . . . Samaritan 1 | . . . . . . . . . 1 . . . . . . . . . . . . . Thug 4 | . . . . . . . . . . . . 4 . . . . . . . . . . Commander 1 | . . . . . . . . . . . 1 . . . . . . . . . . . Best Kill Streak 15 | 3 4 4 5 . 13 . 1 . 3 5 5 6 . 3 15 2 4 . 6 1 15 1 Combat Bots Only 15 | . 3 4 2 . 9 . . . 3 5 5 5 . 3 15 2 4 . 6 1 10 1 Max Kills in Single Turn 6 | 1 2 1 1 . 6 . 1 . 1 1 1 4 . 2 5 1 1 . 3 1 4 1 Gunslinging 1 | . 1 . . . . . . . . . . . . . . . . . . . . . Exploded 4 | . . . . . 3 . . . 1 . . 4 . 2 3 . . . 2 . 2 . Melee 1 | . . . . . . . . . . 1 . . . . . . . . . . . . Uniques/NPCs Destroyed . | . . . . . . . . . . . . . . . . . . . . . . . Combat | -11 -10 -10 -8 -8 -6 -6 -6 -6 -5 -5 -5 -5 -5 -4 -4 -4 -4 -4 -3 -3 -2 -1 -------- Run | Yrd Mat Sub Rec Scr Fac Low Low Dat Pro Fac Upp Upp Zhi Pro Fac Upp Upp War Pro Res Res Acc Hostile Shots Fired 2034 | . 36 39 14 . 505 . . . 38 55 34 101 . 130 525 14 9 . 25 . 392 117 Missed 694 | . 13 10 3 . 159 . . . 16 20 11 41 . 52 189 5 3 . 6 . 121 45 Hits 1340 | . 23 29 11 . 346 . . . 22 35 23 60 . 78 336 9 6 . 19 . 271 72 Melee 11 | . . . . . . . . . . . 1 . . . 4 . . . . . 6 . Projectile 1329 | . 23 29 11 . 346 . . . 22 35 22 60 . 78 332 9 6 . 19 . 265 72 AOE 3 | . . 2 . . . . . . . . . . . . . . . . 1 . . . Critical Strikes 62 | . . 1 1 . 15 . . . 1 2 3 2 . 5 11 . . . 3 . 13 5 Actively Blocked 6 | . . . . . . . . . . . . . . . . . . . . . 1 5 Part Disruptions 1 | . . . . . . . . . . . . . . . . . . . . . 1 . Damage Taken 23249 | . 256 700 158 . 3625 . . . 448 629 438 1095 . 717 5912 178 87 . 320 . 7041 1645 Core 1839 | . 29 131 32 . 157 . . . 16 59 23 56 . 65 368 37 . . . . 462 404 Absorbed by Shields 2447 | . . . . . 1157 . . . . . . . . 590 533 . . . 167 . . . Regen/Repaired (Parts) 3088 | . 42 . . . 449 . . . . 104 . . . . 2082 73 31 271 5 10 21 . Core Remaining (%) 72 | 100 . . . 23 . . . . 79 . . . . 79 . . . . 58 100 68 74 Volleys Fired 1025 | 15 43 54 20 . 206 3 4 . 49 65 50 40 10 51 223 45 4 . 20 8 104 11 Largest 2 | 2 2 2 2 . 2 1 1 . 2 2 2 2 2 2 2 2 2 . 2 2 2 1 Hottest 220 | 70 100 100 90 . 118 35 35 . 150 105 105 70 70 85 165 147 147 . 165 165 220 110 Shots Fired 1630 | 30 78 81 31 . 343 3 4 . 59 86 73 73 20 97 375 58 8 . 32 9 159 11 Gun 287 | 30 71 64 30 . 1 . . . . . . . . . 58 13 4 . . . 16 . Cannon 1273 | . . 16 1 . 326 3 4 . 55 84 72 69 20 96 303 45 4 . 27 9 128 11 Launcher 48 | . . . . . 15 . . . 4 . . 4 . 1 13 . . . 1 . 10 . Special 22 | . 7 1 . . 1 . . . . 2 1 . . . 1 . . . 4 . 5 . Kinetic 618 | 15 36 74 29 . 221 . . . 9 14 3 . . 30 88 24 4 . 12 1 58 . Thermal 950 | 15 42 7 2 . 106 3 4 . 46 70 69 69 20 66 273 34 4 . 15 8 86 11 Explosive 57 | . . . . . 15 . . . 4 . . 4 . 1 13 . . . 5 . 15 . Electromagnetic . | . . . . . . . . . . . . . . . . . . . . . . . Robot Hit Streak 27 | 7 13 15 8 . 27 . 4 . 8 10 13 21 12 8 22 14 12 . 18 4 16 7 Robot Miss Streak 6 | 2 4 1 1 . 5 . 2 . 3 2 2 3 1 2 6 6 . . 3 1 3 . Penetration Max 2 | . . . . . . . . . . . 1 . . 1 2 1 . . 1 . 1 . Secondary Targets 5 | . 2 2 . . . . . . . . . . . . . . . . . . 1 . Max Gunslinging Chain 1 | . 1 1 . . . . . . . . . . . . . . . . . . 1 . Shots Hit Robots 953 | 20 49 45 23 . 200 . 2 . 26 65 36 39 15 56 214 35 5 . 21 5 91 6 Core Hits 857 | 8 23 18 11 . 197 . . . 23 14 14 66 4 32 241 12 3 . 32 2 155 2 Critical Kills 43 | . . . . . 1 . 1 . . 4 1 . . 5 12 5 . . 4 1 9 . Critical Parts Destroyed 48 | . . . . . . . . . . 5 2 . . 9 13 3 . . 6 . 10 . Critical Strikes 112 | . 4 . . . 12 . 1 . . 9 4 . . 14 27 8 . . 12 1 20 . Burn 4 | . 4 . . . . . . . . . . . . . . . . . . . . . Meltdown 12 | . . . . . 1 . 1 . . 2 1 . . . 4 3 . . . . . . Destroy 80 | . . . . . . . . . . 4 3 . . 14 23 5 . . 11 1 19 . Blast 11 | . . . . . 11 . . . . . . . . . . . . . . . . . Smash 3 | . . . . . . . . . . 3 . . . . . . . . . . . . Sever 2 | . . . . . . . . . . . . . . . . . . . 1 . 1 . Melee Attacks 14 | . . . . . . . . . . 14 . . . . . . . . . . . . Impact 14 | . . . . . . . . . . 14 . . . . . . . . . . . . Slashing . | . . . . . . . . . . . . . . . . . . . . . . . Piercing . | . . . . . . . . . . . . . . . . . . . . . . . Sneak Attacks . | . . . . . . . . . . . . . . . . . . . . . . . Combat Hostiles . | . . . . . . . . . . . . . . . . . . . . . . . Follow-up Attacks . | . . . . . . . . . . . . . . . . . . . . . . . Damage Inflicted 48699 | 250 706 768 484 . 10999 . 63 . 1134 2308 1218 2501 577 1907 13417 1287 223 . 2241 173 8136 307 Guns 3857 | 250 659 768 460 . . . . . . . . . . . 1105 229 65 . . . 321 . Cannons 26012 | . . . 24 . 6698 . 63 . 710 1822 1218 1241 577 1752 6773 1058 158 . 781 173 2657 307 Explosions 17764 | . . . . . 4301 . . . 424 . . 1260 . 155 5452 . . . 1331 . 4841 . Melee 457 | . . . . . . . . . . 457 . . . . . . . . . . . . Ramming 189 | . 23 . . . . . . . . 29 . . . . 87 . . . . . 50 . Kinetic 11055 | 137 314 703 461 . 5023 . . . 252 276 82 . . 433 1796 362 65 . 282 18 851 . Thermal 18969 | 113 369 65 23 . 1806 . 63 . 458 1546 1136 1241 577 1319 6082 925 158 . 499 155 2127 307 Explosive 17077 | . . . . . 3614 . . . 424 . . 1260 . 155 5452 . . . 1331 . 4841 . Electromagnetic 556 | . . . . . 556 . . . . . . . . . . . . . . . . . Impact 457 | . . . . . . . . . . 457 . . . . . . . . . . . . Slashing 396 | . . . . . . . . . . . . . . . . . . . 129 . 267 . Piercing . | . . . . . . . . . . . . . . . . . . . . . . . Highest Corruption 23 | . . . . . 6 3 . . . 1 1 . . 1 10 7 1 1 . . 23 2 Average Corruption 3 | . . . . . 2 1 . . . 1 1 . . 1 4 1 1 1 . . 11 1 Corruption Purged 20 | . . . . . 5 3 . . . . 1 . . . 5 6 . . . . . . Corruption Blocked . | . . . . . . . . . . . . . . . . . . . . . . . Effects 120 | . . . . . 23 1 . . . 3 2 . . 1 43 5 1 . . . 41 . Message Errors 23 | . . . . . 4 . . . . 2 1 . . 1 6 3 1 . . . 5 . Matter Fused 24 | . . . . . 6 1 . . . . . . . . 10 . . . . . 7 . Heat Flow Errors 15 | . . . . . 5 . . . . . . . . . 2 . . . . . 8 . Energy Discharges 15 | . . . . . 2 . . . . . . . . . 7 . . . . . 6 . Parts Rejected 5 | . . . . . 1 . . . . . . . . . 1 . . . . . 3 . Parts Fused 1 | . . . . . . . . . . . . . . . . 1 . . . . . . Data Loss (minor) 15 | . . . . . 4 . . . . 1 1 . . . 7 . . . . . 2 . Data Loss (major) 3 | . . . . . . . . . . . . . . . 2 1 . . . . . . Misfires 4 | . . . . . 1 . . . . . . . . . 2 . . . . . 1 . Alerts 2 | . . . . . . . . . . . . . . . 1 . . . . . 1 . Misdirections 4 | . . . . . . . . . . . . . . . . . . . . . 4 . Weapon Failures 9 | . . . . . . . . . . . . . . . 5 . . . . . 4 . Overload Shots 4 | . . . . . . . . . 1 1 1 . . . 1 . . . . . . . Overflow Damage 1328 | . . . . . 357 . . . 90 104 99 24 110 19 253 158 20 . . . 92 2 Projectiles 1027 | . . . . . 272 . . . 90 6 99 24 110 19 191 158 20 . . . 36 2 Explosions 203 | . . . . . 85 . . . . . . . . . 62 . . . . . 56 . Melee 98 | . . . . . . . . . . 98 . . . . . . . . . . . . Knockbacks 53 | . . . . . 33 . . . 2 5 . . . 6 5 . . . . . 2 . Impact 3 | . . . . . . . . . . 3 . . . . . . . . . . . . Kinetic 48 | . . . . . 32 . . . 2 2 . . . 6 4 . . . . . 2 . Secondary 2 | . . . . . 1 . . . . . . . . . 1 . . . . . . . Self-Inflicted Damage 1081 | . . . . . 237 . . . . . . . . 33 186 . . . 41 . 584 . Shots 42 | . . . . . 7 . . . . . . . . 2 7 . . . 2 . 24 . Rammed 3 | . 3 . . . . . . . . . . . . . . . . . . . . . Targets Rammed 18 | . 4 . . . . . . . . 1 . . . . 8 . . . . . 5 . Kicked 14 | . . . . . . . . . . 1 . . . . 8 . . . . . 5 . Crushed 1 | . 1 . . . . . . . . . . . . . . . . . . . . . Highest Temperature 574 | 27 171 . 48 . 380 . . . 17 179 89 36 . 13 574 120 40 . 220 82 305 . Average Temperature 59 | 11 52 . 17 . 67 . . . 7 72 26 18 . 6 65 44 22 . 85 38 55 . Received Heat Transfer 3132 | . 117 . 72 . 1108 . . . 162 27 45 264 . 78 528 18 . . 26 . 507 180 Effects 3 | . . . . . 1 . . . . . . . . . 2 . . . . . . . Shutdowns 1 | . . . . . 1 . . . . . . . . . . . . . . . . . Energy Bleed 2 | . . . . . . . . . . . . . . . 2 . . . . . . . Siege Activations . | . . . . . . . . . . . . . . . . . . . . . . . Martial Activations . | . . . . . . . . . . . . . . . . . . . . . . . Shielding Activations . | . . . . . . . . . . . . . . . . . . . . . . . Robots Disrupted 3 | . . . . . 3 . . . . . . . . . . . . . . . . . Combat Hostiles 3 | . . . . . 3 . . . . . . . . . . . . . . . . . Robots Corrupted 2 | . . . . . 1 . . . . 1 . . . . . . . . . . . . Combat Hostiles 2 | . . . . . 1 . . . . 1 . . . . . . . . . . . . Parts Fried 3 | . . . . . 1 . . . . 2 . . . . . . . . . . . . Impact Corruptions 3 | . . . . . . . . . . 3 . . . . . . . . . . . . Robots Melted 15 | . 1 . . . 1 . 1 . . 2 1 1 . . 5 3 . . . . . . Combat Hostiles 10 | . 1 . . . 1 . . . . 1 . 1 . . 5 1 . . . . . . Parts Melted 63 | . 2 . . . 4 . . . . 10 4 8 . 4 26 5 . . . . . . Heat Transferred 24805 | 333 1345 185 25 . 2284 . 100 . 700 2097 1750 1800 850 2050 7900 1200 200 . 600 200 1186 . Parts Sabotaged 1 | . . . . . . . . . . . . . . . 1 . . . . . . . Parts Stolen . | . . . . . . . . . . . . . . . . . . . . . . . Parts Stripped . | . . . . . . . . . . . . . . . . . . . . . . . Power Chain Reactions 1 | . . . . . 1 . . . . . . . . . . . . . . . . . Alert | -11 -10 -10 -8 -8 -6 -6 -6 -6 -5 -5 -5 -5 -5 -4 -4 -4 -4 -4 -3 -3 -2 -1 ------- Run | Yrd Mat Sub Rec Scr Fac Low Low Dat Pro Fac Upp Upp Zhi Pro Fac Upp Upp War Pro Res Res Acc Maximum Alert Level 5 | . . . . . 5 . . . . 2 . . . . 5 . . . . 1 3 3 Low Security (%) 48 | 100 100 . 100 . 17 . . . . 67 . . . . 36 . . . . . 30 . Level 1 9 | . . . . . 7 . . . . 4 . . . . 15 . . . . 100 20 . Level 2 19 | . . . . . 42 . . . . 27 . . . . 9 . . . . . 7 45 Level 3 11 | . . . . . 10 . . . . . . . . . 15 . . . . . 41 54 Level 4 8 | . . . . . 16 . . . . . . . . . 19 . . . . . . . Level 5 1 | . . . . . 3 . . . . . . . . . 3 . . . . . . . High Security . | . . . . . 1 . . . . . . . . . . . . . . . . . Max Security . | . . . . . . . . . . . . . . . . . . . . . . . Peak Influence 1847 | 10 103 . 35 . 1847 . . . . 546 . . . . 1686 . . . . 274 1087 1059 Initial 632 | . . . 35 . . . . . . . . . . . 12 . . . . 274 112 632 Average 415 | 1 22 . 4 . 661 . . . . 178 . . . . 610 . . . . 236 503 769 Influence Increases 11534 | 40 329 145 152 . 2964 . 5 . 160 942 209 428 15 335 2738 105 90 . 468 186 1546 677 Destroy 0b10 Robot/C 5880 | . 160 60 80 . 1540 . . . 120 400 180 360 . 300 1320 80 80 . 320 20 820 40 Destroy 0b10 Robot/NC 500 | 40 30 . 25 . 160 . 5 . . 5 10 10 15 . 105 15 . . 20 . 60 . Destroy Leader 1018 | . 32 10 . . 330 . . . 10 80 10 40 . 20 254 10 10 . 20 10 162 20 Allied During Kill 252 | . . . . . 31 . . . . 81 9 3 . . 20 . . . 108 . . . Successful Hack 193 | . 26 . 16 . 66 . . . . 27 . . . . 58 . . . . . . . Select Force Hacks 90 | . 60 . 30 . . . . . . . . . . . . . . . . . . . Disable Machine 855 | . . . . . 375 . . . . 60 . . . . 315 . . . . . 75 30 Anti-Garrison Action 350 | . . . . . . . . . . 150 . . . . . . . . . . . 200 Destroy Structure 1466 | . 6 . 1 . 327 . . . . 124 . . . . 516 . . . . 6 414 72 Advance Influence 150 | . . . . . . . . . . . . . . . . . . . . 150 . . Partial Spotted 75 | . . . . . . . . . . . . . . . 15 . . . . . 15 45 Lose Combat Pursuer 705 | . 15 75 . . 135 . . . 30 15 . 15 . 15 135 . . . . . . 270 Influence Decreases 10475 | 40 226 174 226 . 1117 1047 494 311 160 459 692 399 44 314 1073 1028 368 485 283 171 691 673 Entered New Map 3282 | . . 51 39 . . 685 152 311 . . 179 . 29 . 9 624 146 485 . 61 88 423 Time Decay 5803 | 40 226 123 187 . 667 362 342 . 160 359 503 379 15 314 534 404 222 . 263 90 433 180 Lost Part 450 | . . . . . 70 . . . . . 10 . . . 130 . . . . . 170 70 Lost Ally 340 | . . . . . 80 . . . . 100 . 20 . . 100 . . . 20 20 . . Purge Threat 600 | . . . . . 300 . . . . . . . . . 300 . . . . . . . Squads Dispatched 72 | . 3 . . . 27 . . . . 9 . . . . 21 . . . 1 . 8 3 Investigation 26 | . 3 . . . 9 . . . . 2 . . . . 6 . . . . . 5 1 Extermination 17 | . . . . . 5 . . . . 2 . . . . 6 . . . . . 3 1 Reinforcement 13 | . . . . . 8 . . . . . . . . . 4 . . . . . . 1 Assault 13 | . . . . . 5 . . . . 2 . . . . 5 . . . 1 . . . Garrison 3 | . . . . . . . . . . 3 . . . . . . . . . . . . Intercept . | . . . . . . . . . . . . . . . . . . . . . . . Searches Triggered . | . . . . . . . . . . . . . . . . . . . . . . . Data Miner Redirects 7 | . . . . . . . . . . 1 . . . . 2 . . . . . 3 1 Construction Impeded 4 | . . . . . 3 . . . . . . . . . 1 . . . . . . . Haulers Reinforced 3 | . . . . . 1 . . . . . . . . . 2 . . . . . . . Active Scanning Responses . | . . . . . . . . . . . . . . . . . . . . . . . Cargo Convoy Interrupts 1 | . . . . . . . . . . . . . . . . . . . . . 1 . Stealth | -11 -10 -10 -8 -8 -6 -6 -6 -6 -5 -5 -5 -5 -5 -4 -4 -4 -4 -4 -3 -3 -2 -1 --------- Run | Yrd Mat Sub Rec Scr Fac Low Low Dat Pro Fac Upp Upp Zhi Pro Fac Upp Upp War Pro Res Res Acc Distress Signals 16 | . 1 . . . 3 . . . . 1 . . . . 6 . . . . . 2 3 Communications Jammed 91 | . . . . . . . . . . . . . . . 44 . . . . 5 42 . Distress Signals 91 | . . . . . . . . . . . . . . . 44 . . . . 5 42 . Times Spotted 452 | . 18 18 3 . 102 . . . 9 17 9 23 . 15 119 4 4 . 20 4 62 25 Peak Tracking Total 12 | . 5 5 2 . 7 . . . 3 6 5 5 . 3 12 2 3 . 7 1 11 10 Tactical Retreats 23 | . 1 1 . . 4 . . . 1 1 . 1 . 1 6 . . . . . . 7 Traps | -11 -10 -10 -8 -8 -6 -6 -6 -6 -5 -5 -5 -5 -5 -4 -4 -4 -4 -4 -3 -3 -2 -1 ------- Run | Yrd Mat Sub Rec Scr Fac Low Low Dat Pro Fac Upp Upp Zhi Pro Fac Upp Upp War Pro Res Res Acc Traps Triggered 7 | . 1 2 . . 2 . . . . . . . . . . . . . . . 1 1 Indirectly . | . . . . . . . . . . . . . . . . . . . . . . . Trap Hack Attempts 25 | . . 25 . . . . . . . . . . . . . . . . . . . . Triggered . | . . . . . . . . . . . . . . . . . . . . . . . Disarmed 1 | . . 1 . . . . . . . . . . . . . . . . . . . . Reprogrammed 6 | . . 2 . . . . . . . . . . . . . . . . . . 4 . Reused . | . . . . . . . . . . . . . . . . . . . . . . . Traps Extracted . | . . . . . . . . . . . . . . . . . . . . . . . Installed 2 | . . 1 . . . . . . . . . 1 . . . . . . . . . . Triggered . | . . . . . . . . . . . . . . . . . . . . . . . Most Traps Carried 3 | . . 1 . . . . . . 1 1 1 1 . . . 3 3 3 1 1 1 . Machines | -11 -10 -10 -8 -8 -6 -6 -6 -6 -5 -5 -5 -5 -5 -4 -4 -4 -4 -4 -3 -3 -2 -1 ---------- Run | Yrd Mat Sub Rec Scr Fac Low Low Dat Pro Fac Upp Upp Zhi Pro Fac Upp Upp War Pro Res Res Acc Machines Disabled 62 | . . 1 . . 25 . . . . 5 1 . 1 . 21 . . . 1 . 5 2 Max in Single Turn 4 | . . 1 . . 3 . . . . 1 1 . 1 . 4 . . . 1 . 1 1 Garrison Access 7 | . . . . . 3 . . . . 1 . . . . 2 . . . . . . 1 Energy Cycler 1 | . . . . . . . . . . . . . . . . . . . . . . 1 Machines Repaired . | . . . . . . . . . . . . . . . . . . . . . . . Machines Dismantled . | . . . . . . . . . . . . . . . . . . . . . . . Machines Sabotaged . | . . . . . . . . . . . . . . . . . . . . . . . Overloaded Fab Kills . | . . . . . . . . . . . . . . . . . . . . . . . Hacking | -11 -10 -10 -8 -8 -6 -6 -6 -6 -5 -5 -5 -5 -5 -4 -4 -4 -4 -4 -3 -3 -2 -1 --------- Run | Yrd Mat Sub Rec Scr Fac Low Low Dat Pro Fac Upp Upp Zhi Pro Fac Upp Upp War Pro Res Res Acc Machines Accessed 103 | . 10 2 9 2 30 . 1 3 . 8 2 . 4 . 16 1 1 . . 2 11 1 Terminals 41 | . 7 . 6 . 11 . . . . 2 . . . . 5 . . . . 2 8 . Fabricators 6 | . . . . . 2 . . . . . . . . . 2 . . . . . 2 . Repair Stations 9 | . 1 . . . 4 . . . . 2 . . . . 2 . . . . . . . Recycling Units 19 | . 2 . 3 . 7 . . . . 2 . . . . 4 . . . . . 1 . Scanalyzers 5 | . . . . . 3 . . . . 1 . . . . 1 . . . . . . . Garrison Access 7 | . . . . . 3 . . . . 1 . . . . 2 . . . . . . 1 Total Hacks 296 | . 26 6 25 6 70 . 1 22 . 18 8 . 16 . 55 1 1 . . 2 36 3 Successful 163 | . 8 6 11 6 44 . 1 22 . 11 8 . 16 . 24 1 1 . . . 3 1 Failed 133 | . 18 . 14 . 26 . . . . 7 . . . . 31 . . . . 2 33 2 Catastrophic 33 | . 1 . 3 . 7 . . . . 2 . . . . 6 . . . . 2 12 . Database Lockouts . | . . . . . . . . . . . . . . . . . . . . . . . Manual 112 | . 20 . 23 . 24 . . . . 7 . . . . 25 . . 1 . . 9 3 Terminals 112 | . 21 . 16 . 22 . . . . 8 . . . . 17 . . . . 2 26 . Fabricators 20 | . . . . . 9 . . . . . . . . . 4 . . . . . 7 . Repair Stations 26 | . 3 . . . 9 . . . . 4 . . . . 10 . . . . . . . Recycling Units 36 | . 2 . 9 . 11 . . . . 3 . . . . 8 . . . . . 3 . Scanalyzers 24 | . . . . . 12 . . . . 2 . . . . 10 . . . . . . . Garrison Access 17 | . . . . . 7 . . . . 1 . . . . 6 . . . . . . 3 Terminal Hacks 80 | . 3 6 1 6 6 . 1 22 . 3 8 . 16 . 4 1 1 . . . 2 . Record 23 | . . 5 . . . . . 6 . . 7 . 5 . . . . . . . . . Part Schematic 12 | . . . . . . . . 8 . 1 . . 3 . . . . . . . . . Robot Schematic 5 | . . . . . . . . 5 . . . . . . . . . . . . . . Robot Analysis 12 | . 3 . . 5 . . . . . . . . 4 . . . . . . . . . Prototype ID Bank 7 | . . . . . . . . 3 . . . . 4 . . . . . . . . . Open Door 4 | . . . . . . . 1 . . . 1 . . . . 1 1 . . . . . Branch Access Points 2 | . . . . . 1 . . . . 1 . . . . . . . . . . . . Terminal Index 1 | . . . 1 . . . . . . . . . . . . . . . . . . . Recycling Unit Index 2 | . . . . . . . . . . 1 . . . . 1 . . . . . . . Unreport Threat 4 | . . . . . 2 . . . . . . . . . 2 . . . . . . . Locate Traps 4 | . . . . . 2 . . . . . . . . . 1 . . . . . 1 . Reprogram Traps 1 | . . . . . . . . . . . . . . . . . . . . . 1 . Recall Investigation 1 | . . . . . 1 . . . . . . . . . . . . . . . . . Proto ID Catalog 2 | . . 1 . 1 . . . . . . . . . . . . . . . . . . Fabricator Hacks 7 | . . . . . 4 . . . . . . . . . 2 . . . . . 1 . Load Schematic 4 | . . . . . 2 . . . . . . . . . 1 . . . . . 1 . Build 3 | . . . . . 2 . . . . . . . . . 1 . . . . . . . Repair Station Hacks 17 | . 2 . . . 7 . . . . 4 . . . . 4 . . . . . . . Scan Component 9 | . 1 . . . 4 . . . . 2 . . . . 2 . . . . . . . Repair 8 | . 1 . . . 3 . . . . 2 . . . . 2 . . . . . . . Recycling Unit Hacks 2 | . . . 1 . 1 . . . . . . . . . . . . . . . . . Retrieve Components 2 | . . . 1 . 1 . . . . . . . . . . . . . . . . . Scanalyzer 19 | . . . . . 10 . . . . 1 . . . . 8 . . . . . . . Insert Component 9 | . . . . . 4 . . . . 1 . . . . 4 . . . . . . . Analyze 10 | . . . . . 6 . . . . . . . . . 4 . . . . . . . Garrison Access Hacks 5 | . . . . . 3 . . . . . . . . . 2 . . . . . . . Seal Access 5 | . . . . . 3 . . . . . . . . . 2 . . . . . . . Unauthorized Hacks 33 | . 3 . 9 . 13 . . . . 3 . . . . 4 . . . . . . 1 Terminals 10 | . 1 . 6 . 1 . . . . 1 . . . . 1 . . . . . . . Botnet 6 | . 1 . 2 . 1 . . . . 1 . . . . 1 . . . . . . . Disrupt 1 | . . . 1 . . . . . . . . . . . . . . . . . . . Skim 3 | . . . 3 . . . . . . . . . . . . . . . . . . . Fabricators 4 | . . . . . 4 . . . . . . . . . . . . . . . . . Prioritize 1 | . . . . . 1 . . . . . . . . . . . . . . . . . Liberate 2 | . . . . . 2 . . . . . . . . . . . . . . . . . Haulers 1 | . . . . . 1 . . . . . . . . . . . . . . . . . Repair Stations . | . . . . . . . . . . . . . . . . . . . . . . . Recycling Units 18 | . 2 . 3 . 8 . . . . 2 . . . . 3 . . . . . . . Mask 3 | . . . 2 . 1 . . . . . . . . . . . . . . . . . Tunnel 3 | . 2 . 1 . . . . . . . . . . . . . . . . . . . Fedlink 7 | . . . . . 6 . . . . . . . . . 1 . . . . . . . Scrapoids 2 | . . . . . . . . . . 1 . . . . 1 . . . . . . . Scraphulk 3 | . . . . . 1 . . . . 1 . . . . 1 . . . . . . . Scanalyzers . | . . . . . . . . . . . . . . . . . . . . . . . Garrison Access 1 | . . . . . . . . . . . . . . . . . . . . . . 1 Jam 1 | . . . . . . . . . . . . . . . . . . . . . . 1 Data Cores Recovered 2 | . 1 . . . 1 . . . . . . . . . . . . . . . . . Used 1 | . . . . . 1 . . . . . . . . . . . . . . . . . Hacking Detections 74 | . 8 . 9 . 24 . . . . 7 . . . . 12 . . . . 2 11 1 Full Trace Events 11 | . 1 . 1 . 1 . . . . . . . . . 3 . . . . . 5 . Feedback Events 2 | . . . . . . . . . . . . . . . 1 . . . . . 1 . Corruption 1 | . . . . . . . . . . . . . . . . . . . . . 1 . Hackware Fried 1 | . . . . . . . . . . . . . . . 1 . . . . . . . Feedback Blocked 1 | . . . . . . . . . . . . . . . . . . . . . 1 . Robot Schematics Acquired 5 | . . . . . . . . 5 . . . . . . . . . . . . . . Robots Built . | . . . . . . . . . . . . . . . . . . . . . . . Authchips . | . . . . . . . . . . . . . . . . . . . . . . . Time . | . . . . . . . . . . . . . . . . . . . . . . . Total Robot Build Rating . | . . . . . . . . . . . . . . . . . . . . . . . Part Schematics Acquired 18 | . . . . . 3 . . 8 . 1 . . 3 . 3 . . . . . . . Parts Built 3 | . . . . . 2 . . . . . . . . . 1 . . . . . . . Authchips 2 | . . . . . 2 . . . . . . . . . . . . . . . . . Time 116 | . . . . . 58 . . . . . . . . . 58 . . . . . . . Total Part Build Rating 21 | . . . . . 14 . . . . . . . . . 7 . . . . . . . Parts Repaired 8 | . 1 . . . 3 . . . . 2 . . . . 2 . . . . . . . Time 256 | . 26 . . . 82 . . . . 108 . . . . 40 . . . . . . . Parts Recycled . | . . . . . . . . . . . . . . . . . . . . . . . Recycled Matter . | . . . . . . . . . . . . . . . . . . . . . . . Retrieved Matter . | . . . . . . . . . . . . . . . . . . . . . . . Retrieved Components 4 | . . . 3 . 1 . . . . . . . . . . . . . . . . . Parts Scanalyzed 7 | . . . . . 3 . . . . 1 . . . . 3 . . . . . . . Part Schematics Acquired 6 | . . . . . 3 . . . . . . . . . 3 . . . . . . . Parts Damaged 1 | . . . . . . . . . . 1 . . . . . . . . . . . . Bothacking | -11 -10 -10 -8 -8 -6 -6 -6 -6 -5 -5 -5 -5 -5 -4 -4 -4 -4 -4 -3 -3 -2 -1 ------------ Run | Yrd Mat Sub Rec Scr Fac Low Low Dat Pro Fac Upp Upp Zhi Pro Fac Upp Upp War Pro Res Res Acc Used RIF Installer . | . . . . . . . . . . . . . . . . . . . . . . . Robots Hacked . | . . . . . . . . . . . . . . . . . . . . . . . Non-combat . | . . . . . . . . . . . . . . . . . . . . . . . Combat . | . . . . . . . . . . . . . . . . . . . . . . . Robot Hacks Applied . | . . . . . . . . . . . . . . . . . . . . . . . Relay Couplers Released 6 | . . . . . . . . . . 3 . . . . 3 . . . . . . . Machine Destruction 3 | . . . . . . . . . . 3 . . . . . . . . . . . . Programmers 3 | . . . . . . . . . . . . . . . 3 . . . . . . . Fabnet Peak Effective % . | . . . . . . . . . . . . . . . . . . . . . . . Robots Rewired 6 | . . . . . . . . . . . 1 . . . . . . 5 . . . . Allies Hacked . | . . . . . . . . . . . . . . . . . . . . . . . Hacks Repelled . | . . . . . . . . . . . . . . . . . . . . . . . Allies | -11 -10 -10 -8 -8 -6 -6 -6 -6 -5 -5 -5 -5 -5 -4 -4 -4 -4 -4 -3 -3 -2 -1 -------- Run | Yrd Mat Sub Rec Scr Fac Low Low Dat Pro Fac Upp Upp Zhi Pro Fac Upp Upp War Pro Res Res Acc Total Allies 22 | . . . . . 4 . . . . 6 1 . . . 6 . . 5 . . . . Largest Group 5 | . . . . . 3 . . . . 5 1 1 . . 5 . . 5 5 1 . . Highest-Rated Group 262 | . . . . . 123 . . . . 235 43 43 . . 241 . . 262 262 56 . . Highest-Rated Ally 123 | . . . . . 123 . . . . 123 43 43 . . 123 . . 64 64 56 . . Total Orders 9 | . . . . . 1 . . . . 6 2 . . . . . . . . . . . STAY 4 | . . . . . 1 . . . . 2 1 . . . . . . . . . . . ROAM 1 | . . . . . . . . . . 1 . . . . . . . . . . . . FOLLOW 4 | . . . . . . . . . . 3 1 . . . . . . . . . . . Ally Attacks 187 | . . . . . 47 . . . . 76 7 3 . . 23 . . . 28 3 . . Total Damage 6949 | . . . . . 2002 . . . . 2011 120 70 . . 1466 . . . 1111 169 . . Kills 43 | . . . . . 20 . . . . 9 1 1 . . 4 . . . 8 . . . Allies Corrupted . | . . . . . . . . . . . . . . . . . . . . . . . Allies Melted 1 | . . . . . . . . . . . 1 . . . . . . . . . . . Intel | -11 -10 -10 -8 -8 -6 -6 -6 -6 -5 -5 -5 -5 -5 -4 -4 -4 -4 -4 -3 -3 -2 -1 ------- Run | Yrd Mat Sub Rec Scr Fac Low Low Dat Pro Fac Upp Upp Zhi Pro Fac Upp Upp War Pro Res Res Acc Active Infowar (turns) 20101 | . . 3717 638 . 2709 798 773 88 797 410 1134 1118 86 928 2375 831 475 663 785 197 1214 365 Optics 4524 | . . . . . . . . . . . . . . . . 825 475 663 785 197 1214 365 Sensors 10100 | . . . . . . 798 773 88 797 410 1134 1118 86 928 1682 757 317 577 . . 356 279 Seismic 6035 | . . 3717 638 . 1680 . . . . . . . . . . . . . . . . . Machine Analysis 1378 | . . . . . 1378 . . . . . . . . . . . . . . . . . Jamming 2354 | . . . . . . . . . . . . . . . 1422 . . . . 197 735 . Robot Analysis Total 12 | . 3 . . 5 . . . . . . . . 4 . . . . . . . . . Derelict Logs Recovered 16 | . . 2 . 5 . . 1 . 1 . 2 2 . 2 . . 1 . . . . . Drone Launches . | . . . . . . . . . . . . . . . . . . . . . . . Drone Recoveries . | . . . . . . . . . . . . . . . . . . . . . . . Exploration | -11 -10 -10 -8 -8 -6 -6 -6 -6 -5 -5 -5 -5 -5 -4 -4 -4 -4 -4 -3 -3 -2 -1 ------------- Run | Yrd Mat Sub Rec Scr Fac Low Low Dat Pro Fac Upp Upp Zhi Pro Fac Upp Upp War Pro Res Res Acc Turns Passed 29359 | 245 1313 3834 1680 2800 3696 839 774 93 927 1340 1425 1560 273 1230 2666 965 475 663 785 197 1214 365 Spaces Moved 16384 | 111 658 1524 718 1090 2624 619 565 76 614 668 886 991 164 638 1337 582 326 423 515 120 610 525 Core 621 | 4 . . . . . . . . . . . . . . . . . . . . 94 523 Treads 3838 | 107 658 1319 718 1036 . . . . . . . . . . . . . . . . . . Legs 7167 | . . . . . . . . . . 668 886 991 164 638 1337 582 326 423 515 120 516 1 Wheels 4757 | . . 205 . 54 2624 619 565 76 614 . . . . . . . . . . . . . Hover 1 | . . . . . . . . . . . . . . . . . . . . . . 1 Flight . | . . . . . . . . . . . . . . . . . . . . . . . Fastest Speed 50 | 50 160 120 160 120 90 110 120 120 120 140 140 140 140 140 140 140 140 140 140 140 50 50 Average Speed 143 | 156 160 190 217 234 98 119 120 120 120 140 140 140 140 140 142 140 140 140 140 140 134 59 Slowest Speed 250 | 160 160 240 240 240 120 120 120 120 120 140 140 140 140 140 250 140 140 140 140 140 250 140 Overloaded Moves . | . . . . . . . . . . . . . . . . . . . . . . . Propulsion Burnouts . | . . . . . . . . . . . . . . . . . . . . . . . Robots Hopped . | . . . . . . . . . . . . . . . . . . . . . . . Potential Cave-ins 5 | . . . . . . . . . . . . . . . 5 . . . . . . . Cave-ins Triggered . | . . . . . . . . . . . . . . . . . . . . . . . Teleports 1 | . . . . . . . . . . . . . . . 1 . . . . . . . Exploration Rate (%) 59 | 8 99 72 95 82 60 77 72 68 56 17 93 92 60 62 32 75 53 63 80 4 27 20 Regions Visited 22 Branch Regions 15 Pre-discovered Areas 12 | . 2 1 1 2 1 . . 1 . . . . 3 . . . 1 . . . . . Known Exits Taken 18 | . . 1 . . 1 1 1 1 1 1 1 1 1 1 1 1 1 1 1 1 1 . Unknown Exits Taken 4 | 1 1 . 1 1 . . . . . . . . . . . . . . . . . . Scrap Searched 40 | . . 4 . 10 . 9 2 . 1 . 2 1 . 2 . 2 3 . 4 . . . Spaces Dug 221 | . 4 2 . . 77 2 . . 23 4 16 11 . 6 34 2 . . 23 2 13 2 Terrain Destroyed 1337 | . 6 3 1 . 262 2 2 . 134 24 33 133 . 67 305 28 5 . 59 3 246 24 Melee 1 | . . . . . . . . . . 1 . . . . . . . . . . . . Projectile 520 | . 6 3 1 . 101 2 2 . 32 23 33 32 . 50 122 28 5 . 7 3 67 3 AOE 816 | . . . . . 161 . . . 102 . . 101 . 17 183 . . . 52 . 179 21 Terrain Rammed . | . . . . . . . . . . . . . . . . . . . . . . . Walls Destroyed . | . . . . . . . . . . . . . . . . . . . . . . . Machines Disabled . | . . . . . . . . . . . . . . . . . . . . . . . Actions | -11 -10 -10 -8 -8 -6 -6 -6 -6 -5 -5 -5 -5 -5 -4 -4 -4 -4 -4 -3 -3 -2 -1 --------- Run | Yrd Mat Sub Rec Scr Fac Low Low Dat Pro Fac Upp Upp Zhi Pro Fac Upp Upp War Pro Res Res Acc Total 20636 | 150 821 2370 809 1341 3371 713 658 77 736 965 997 1083 188 885 1822 701 340 493 558 144 848 566 Wait 2397 | 11 97 724 40 227 349 73 81 . 56 171 26 23 2 177 159 60 10 8 15 14 63 11 Move 16363 | 110 657 1523 717 1089 2623 618 564 75 613 667 885 990 163 637 1337 581 325 422 514 119 610 524 Hop . | . . . . . . . . . . . . . . . . . . . . . . . Pick Up 180 | 8 8 12 19 14 46 5 3 . 3 12 4 1 2 1 19 4 . 2 2 1 10 4 Fast Attach 78 | 6 3 3 2 . 16 2 . . . 4 3 2 4 1 12 . . 6 1 . 11 2 Attach 77 | . . 3 2 . 17 . . . . 2 2 2 1 3 15 2 . 1 1 2 17 7 Detach 51 | . 1 . 1 . 9 1 . . . 5 3 3 4 1 5 . . 4 1 . 9 4 Swap 215 | . 6 11 2 3 51 5 2 2 12 12 9 16 . 14 35 7 1 8 3 . 16 . Drop 140 | . 2 14 6 8 46 6 4 . 3 12 5 5 2 . 10 2 . 8 1 . 4 2 Fire 1025 | 15 43 54 20 . 206 3 4 . 49 65 50 40 10 51 223 45 4 . 20 8 104 11 Melee 14 | . . . . . . . . . . 14 . . . . . . . . . . . . Ram . | . . . . . . . . . . . . . . . . . . . . . . . Kick 12 | . . . . . . . . . . 1 . . . . 7 . . . . . 4 . Crush 4 | . 4 . . . . . . . . . . . . . . . . . . . . . Escape Stasis 9 | . . . . . 8 . . . . . . . . . . . . . . . . 1 Rewire 44 | . . . . . . . . . . . 10 . . . . . . 34 . . . . Trap 27 | . . 26 . . . . . . . . . 1 . . . . . . . . . . Miscellaneous . | . . . . . . . . . . . . . . . . . . . . . . . Route ------- -11/Scrapyard -10/Materials (discovered 6 exits: [*Mat x3] / [*Min x2] / *Sub) -10/Subcaves (discovered 3 exits: *Mat x2 / *Rec) -8/Recycling (discovered 2 exits: *Fac / *Scr) -8/Scraptown (discovered 2 exits: *Fac x2) -6/Factory (discovered 6 exits: *Fac x2 / *Low x2 / *Ext x2) -6/Lower Caves -6/Lower Caves -6/Data Miner -5/Proximity Caves -5/Factory (discovered 2 exits: *Upp x2) -5/Upper Caves -5/Upper Caves (discovered 2 exits: *Fac / *Zhi) -5/Zhirov -4/Proximity Caves -4/Factory (discovered 5 exits: Res x3 / *Upp x2) -4/Upper Caves (discovered 2 exits: *Upp / *War) -4/Upper Caves -4/Warlord -3/Proximity Caves -3/Research (discovered 3 exits: *Res x2 / Tes) -2/Research -1/Access To Epsilon Eridani History --------- Turn | Location | Event 3 | -11/Scrapyard | Discovered new exit (range 15) 246 | -11/Scrapyard | Entered Materials 305 | -10/Materials | Build established: Mutant 454 | -10/Materials | Discovered new exit (range 8) 640 | -10/Materials | Discovered new exit (range 15) 828 | -10/Materials | Repaired Lgt. Armor Plating 925 | -10/Materials | Discovered new exit (range 3) 935 | -10/Materials | Discovered new exit (range 13) 1345 | -10/Materials | Discovered new exit (range 7) 1551 | -10/Materials | Discovered new exit (range 8) 1559 | -10/Materials | Entered Subcaves 2351 | -10/Subcaves | Visited Clippyterm 2355 | -10/Subcaves | Identified exit to Materials 2355 | -10/Subcaves | Identified exit to Recycling 2355 | -10/Subcaves | Learned Factory stockpile data 2416 | -10/Subcaves | Shifting Twisted Machinery released Sub. Monowheel 2424 | -10/Subcaves | Shifting Twisted Machinery released Piercing Trap 2734 | -10/Subcaves | Ambushed by Subdweller buried in earth 2785 | -10/Subcaves | Lost 3 parts (1p1n1u) 2968 | -10/Subcaves | Learned location of Zion (-7) 3070 | -10/Subcaves | Build established: Scavenger-Mutant 3390 | -10/Subcaves | Shifting Twisted Machinery released Lgt. Humpback 3397 | -10/Subcaves | Shifting Twisted Machinery released Flamer 3405 | -10/Subcaves | Shifting Twisted Machinery released Sub. Power Source 3412 | -10/Subcaves | Shifting Twisted Machinery released Sub. Laser 4060 | -10/Subcaves | Core integrity fell below 50% 4457 | -10/Subcaves | Learned 8 Materials zone layouts 4512 | -10/Subcaves | Visited 4L-MR0's lab 4575 | -10/Subcaves | Found Rainbow Chip 5196 | -10/Subcaves | Disturbed a concealed Subdweller 5393 | -10/Subcaves | Entered Recycling 5845 | -8/Recycling | Discovered new exit (range 15) 6337 | -8/Recycling | Build established: Mutant 7013 | -8/Recycling | Scanned before Scraplab entrance 7046 | -8/Recycling | Entered Scraplab 7066 | -8/Recycling | Discovered new exit (range 3) 7073 | -8/Recycling | Entered Scraptown 7417 | -8/Scraptown | Heard Great Nut preacher, LISTEN AND RECITE! 7609 | -8/Scraptown | Discovered new exit (range 11) 7703 | -8/Scraptown | Scanned Subdweller tech in exchange for log data 7710 | -8/Scraptown | Learned 12 Research zone layouts 7712 | -8/Scraptown | Learned 12 Factory zone layouts 7715 | -8/Scraptown | Learned location of Testing (-3) 7717 | -8/Scraptown | Learned 8 Factory zone layouts 7780 | -8/Scraptown | Visited Bundlers 7952 | -8/Scraptown | Visited Spacefarers 8065 | -8/Scraptown | Visited The Evicted 8101 | -8/Scraptown | Visited Awakened 8187 | -8/Scraptown | Visited Cave Peace 8204 | -8/Scraptown | Visited Comm Corps 8463 | -8/Scraptown | Visited UFD Registry 8463 | -8/Scraptown | Registered with UFD as "Cryodrive" 8550 | -8/Scraptown | Visited Modified Component R&D 8688 | -8/Scraptown | Visited Curators Association 8803 | -8/Scraptown | Visited Scrap Suit Storage 8851 | -8/Scraptown | Visited Analyses Database 8961 | -8/Scraptown | Visited Science Guys 9043 | -8/Scraptown | Visited DA-N13 Charitable Foundation 9052 | -8/Scraptown | Found DCF Scrap (31 items) 9304 | -8/Scraptown | Delivered Scrap Shield to a Scientist 9512 | -8/Scraptown | Found Scrap Suit 9811 | -8/Scraptown | Met Optimus 9811 | -8/Scraptown | Accepted into 0bPrime 9868 | -8/Scraptown | Discovered new exit (range 5) 9873 | -8/Scraptown | Entered Factory 9873 | -6/Factory | Evolved 8 slots: Power x1, Propulsion x2, Utility x5 9874 | -6/Factory | Identified exit to Lower Caves 9874 | -6/Factory | Identified exit to Factory 9892 | -6/Factory | Identified exit to Extension 10108 | -6/Factory | Repaired Hrd. Medium Armor Plating 10129 | -6/Factory | Loaded intel: 8 recycling unit locations 10163 | -6/Factory | Learned location of Protoforge (-2) 10193 | -6/Factory | Build established: Scrapper 10313 | -6/Factory | Found Prototype Processor 10313 | -6/Factory | Identified Exp. Targeting Computer 10479 | -6/Factory | Lost 3 parts (2p1u) 10488 | -6/Factory | Destroyed 9 combat bots 10565 | -6/Factory | Found Prototype Launcher 10565 | -6/Factory | Identified Rocket Array 10569 | -6/Factory | Found Rocket Array 10571 | -6/Factory | Found Rocket Array 10573 | -6/Factory | First assault squad dispatched 10634 | -6/Factory | Repaired Magnetic Acceleration Cannon 10743 | -6/Factory | Spotted B-75 Beast 11709 | -6/Factory | Repaired Hrd. Medium Armor Plating 11845 | -6/Factory | Discovered exit to Factory (range 15) 12294 | -6/Factory | Scraphulk reinforcements arrived 12886 | -6/Factory | Found Scrap Suit 13312 | -6/Factory | Fabricated Ovr. Armored Exoskeleton? 13377 | -6/Factory | Destroyed 8 combat bots 13449 | -6/Factory | Destroyed 7 combat bots 13509 | -6/Factory | High security lockdown imminent 13511 | -6/Factory | Fabricated Ovr. Armored Exoskeleton? 13569 | -6/Factory | Entered Lower Caves 13571 | -6/Lower Caves | UFD Scientist delivered a prototype 13601 | -6/Lower Caves | Build established: Scavenger-Scrapper 13604 | -6/Lower Caves | Found Prototype Protection 13604 | -6/Lower Caves | Identified Enh. Scrap Shield 13914 | -6/Lower Caves | Build established: Scrapper 14265 | -6/Lower Caves | Discovered new exit (range 11) 14277 | -6/Lower Caves | Identified exit to Lower Caves 14408 | -6/Lower Caves | Entered another Lower Caves area 14594 | -6/Lower Caves | Encountered a Warlord checkpoint 14602 | -6/Lower Caves | Learned Factory trap positions 15041 | -6/Lower Caves | Discovered new exit (range 2) 15048 | -6/Lower Caves | Identified exit to Data Miner 15182 | -6/Lower Caves | Entered Data Miner 15182 | -6/Data Miner | Discovered new exit (range 6) 15205 | -6/Data Miner | Met Data Miner 15228 | -6/Data Miner | Learned location of Section 7 (-2) 15228 | -6/Data Miner | Acquired the access code to Warlord's prototype stash 15244 | -6/Data Miner | Received God Mode back door access code from Data Miner 15273 | -6/Data Miner | Identified exit to Proximity Caves 15275 | -6/Data Miner | Entered Proximity Caves 15424 | -5/Proximity Caves | Attracted the attention of an 0b10 checkpoint 16202 | -5/Proximity Caves | Entered Factory 16202 | -5/Factory | Evolved 2 slots: Propulsion x2 16203 | -5/Factory | Loaded intel: 105 trap records 16362 | -5/Factory | Incoming investigation squad redirected 16373 | -5/Factory | Scraphulk reinforcements arrived 16395 | -5/Factory | Spotted B-75 Beast 16523 | -5/Factory | Allies destroyed B-75 Beast 16610 | -5/Factory | Build established: Scavenger-Scrapper 16685 | -5/Factory | Destroyed 05F02-K 16696 | -5/Factory | Found Scrap Suit 16808 | -5/Factory | Identified exit to Upper Caves 16829 | -5/Factory | Found Imp. Powered Armor 17121 | -5/Factory | Build established: Scrapper 17146 | -5/Factory | Scrapoid reinforcements arrived 17175 | -5/Factory | Garrison activated, responded to threat 17193 | -5/Factory | Found Scrap Suit 17207 | -5/Factory | Lost 3 allies 17334 | -5/Factory | Repaired Ovr. Phase Cannon? 17438 | -5/Factory | Repaired Cld. Plasma Cannon? 17542 | -5/Factory | Entered Upper Caves 17674 | -5/Upper Caves | Attracted the attention of an 0b10 outpost 17796 | -5/Upper Caves | Learned location of 1 exit from Factory 18005 | -5/Upper Caves | Attracted the attention of an 0b10 checkpoint 18192 | -5/Upper Caves | Entered an active Warlord outpost 18209 | -5/Upper Caves | Learned location of 1 exit from Factory 18209 | -5/Upper Caves | Learned 8 Factory zone layouts 18209 | -5/Upper Caves | Learned Extension terminal intel 18209 | -5/Upper Caves | Learned Armory garrison access intel 18269 | -5/Upper Caves | Destroyed 2Q-1FO(g) 18340 | -5/Upper Caves | Build established: Scavenger-Scrapper 18515 | -5/Upper Caves | Discovered new exit (range 8) 18564 | -5/Upper Caves | Learned 8 Factory zone layouts 18959 | -5/Upper Caves | Identified exit to Upper Caves 18967 | -5/Upper Caves | Entered another Upper Caves area 18967 | -5/Upper Caves | Accompanied by 1 ally 19171 | -5/Upper Caves | Discovered new exit (range 16) 19581 | -5/Upper Caves | Learned Factory emergency access door positions 19705 | -5/Upper Caves | Ambushed by wild Derelicts 19913 | -5/Upper Caves | Discovered new exit (range 4) 19924 | -5/Upper Caves | Identified exit to Zhirov 20527 | -5/Upper Caves | Entered Zhirov 20527 | -5/Zhirov | Discovered new exit (range 4) 20553 | -5/Zhirov | Met Zhirov 20583 | -5/Zhirov | Learned location of Quarantine (-2) 20583 | -5/Zhirov | Learned location of Command (-1) 20592 | -5/Zhirov | Zhirov requested help retrieving the SGEMP Prototype 20615 | -5/Zhirov | Found Alien Artifact 20615 | -5/Zhirov | Identified Integrated Dissipator 20615 | -5/Zhirov | Installed Integrated Dissipator, increased core heat dissipation (+20) 20737 | -5/Zhirov | Found Alien Artifact 20798 | -5/Zhirov | Identified exit to Proximity Caves 20800 | -5/Zhirov | Entered Proximity Caves 20802 | -4/Proximity Caves | Attracted the attention of an 0b10 checkpoint 20916 | -4/Proximity Caves | Build established: Scrapper 20947 | -4/Proximity Caves | Found Alien Artifact 20947 | -4/Proximity Caves | Identified Core Expander 20947 | -4/Proximity Caves | Installed Core Expander, added new Utility slot 21065 | -4/Proximity Caves | Learned location of 1 exit from Research 21233 | -4/Proximity Caves | Learned Research interactive machine intel 21771 | -4/Proximity Caves | Ambushed by research squad 21914 | -4/Proximity Caves | Discovered new exit (range 13) 21929 | -4/Proximity Caves | Identified exit to Factory 22030 | -4/Proximity Caves | Entered Factory 22030 | -4/Factory | Evolved 2 slots: Utility x2 22031 | -4/Factory | Identified exit to Upper Caves 22032 | -4/Factory | Identified exit to Research 22319 | -4/Factory | Loaded intel: 8 recycling unit locations 22404 | -4/Factory | Fabricated Ovr. Armored Exoskeleton? 22858 | -4/Factory | Spotted B-86 Titan 23123 | -4/Factory | Build established: Hacker-Scrapper 23437 | -4/Factory | Hacking Suite fried by hacking feedback 23530 | -4/Factory | First assault squad dispatched 23616 | -4/Factory | Incoming assault squad redirected 23629 | -4/Factory | Identified Transdimensional Reconstructor 23629 | -4/Factory | Warped through subspace 23658 | -4/Factory | Lost 5 parts (1p2u2w) 23749 | -4/Factory | Destroyed 9 combat bots 23800 | -4/Factory | Scrapoid reinforcements arrived 23832 | -4/Factory | Found Corrupted Scrap Suit 23852 | -4/Factory | System corruption reached 10% 23860 | -4/Factory | Lost 5 allies 23889 | -4/Factory | Found Corrupted Scrap Suit 24056 | -4/Factory | Scraphulk reinforcements arrived? 24122 | -4/Factory | Build established: Scavenger-Scrapper 24226 | -4/Factory | Destroyed 15 combat bots 24254 | -4/Factory | Found Scrap Suit 24465 | -4/Factory | Repaired Ovr. Armored Exoskeleton 24525 | -4/Factory | Repaired Ovr. Armored Exoskeleton? 24654 | -4/Factory | Incoming assault squad redirected 24689 | -4/Factory | Discovered exit to Upper Caves (range 5) 24696 | -4/Factory | Entered Upper Caves 25241 | -4/Upper Caves | Discovered new exit (range 13) 25532 | -4/Upper Caves | A Derelict revealed a hidden shortcut to "reach the base" 25660 | -4/Upper Caves | Identified exit to Upper Caves 25661 | -4/Upper Caves | Entered another Upper Caves area 25703 | -4/Upper Caves | Learned location of Armory (-3) 25783 | -4/Upper Caves | Spotted B-86 Titan 26055 | -4/Upper Caves | Discovered new exit (range 9) 26135 | -4/Upper Caves | Identified exit to Warlord 26136 | -4/Upper Caves | Entered Warlord 26183 | -4/Warlord | System corruption cleaned by Quarantine Array 26487 | -4/Warlord | Found Prototype Special Weapon 26487 | -4/Warlord | Identified RU-N14's Throwing Claymores v3 26490 | -4/Warlord | Found RU-N14's Throwing Claymores v3 26596 | -4/Warlord | Opened Warlord's prototype stash 26606 | -4/Warlord | Found Prototype Processor 26606 | -4/Warlord | Identified Exp. Core Analyzer 26610 | -4/Warlord | Found Prototype Device 26610 | -4/Warlord | Identified Exp. Focal Shield 26628 | -4/Warlord | Found Prototype Hackware 26637 | -4/Warlord | Found Prototype Reactor 26637 | -4/Warlord | Identified Vortex Chain Reactor 26778 | -4/Warlord | Discovered new exit (range 12) 26791 | -4/Warlord | Identified exit to Proximity Caves 26799 | -4/Warlord | Entered Proximity Caves 26799 | -3/Proximity Caves | Accompanied by 5 allies 27018 | -3/Proximity Caves | Spotter reported a threat 27058 | -3/Proximity Caves | Attracted the attention of an 0b10 outpost 27122 | -3/Proximity Caves | P-80 Master assimilated allied Disruptor 7b 27214 | -3/Proximity Caves | Lost 3 allies 27529 | -3/Proximity Caves | Discovered exit to Research (range 10) 27584 | -3/Proximity Caves | Entered Research 27584 | -3/Research | Accompanied by 1 ally 27584 | -3/Research | Evolved 2 slots: Utility x2 27585 | -3/Research | Identified exit to Testing 27586 | -3/Research | Identified exit to Research 27587 | -3/Research | Loaded intel: 45 interactive machine locations 27781 | -3/Research | Entered another Research area 27781 | -2/Research | Evolved 2 slots: Utility x2 27931 | -2/Research | Identified Ghost Barrier 27961 | -2/Research | Incoming investigation squad redirected 27994 | -2/Research | Incoming investigation squad redirected 28437 | -2/Research | System corruption reached 10% 28458 | -2/Research | Destroyed 10 combat bots 28511 | -2/Research | Lost 8 parts (1p1n3u3w) 28560 | -2/Research | Incoming investigation squad redirected 28936 | -2/Research | Cargo convoy interrupted 28936 | -2/Research | Spotted Striker 28936 | -2/Research | Spotted Striker 28936 | -2/Research | Spotted Striker 28968 | -2/Research | Lost 3 parts (2p1w) 28988 | -2/Research | Discovered new exit (range 14) 28994 | -2/Research | Identified exit to Access 28995 | -2/Research | Entered Access 28995 | -1/Access | Evolved 2 slots: Utility x2 29118 | -1/Access | Spotted B-99 Colossus 29182 | -1/Access | Incoming investigation squad redirected 29267 | -1/Access | Spotted B-99 Colossus 29268 | -1/Access | Spotted B-99 Colossus 29298 | -1/Access | Energy Cycler disabled 29320 | -1/Access | Spotted B-99 Colossus 29351 | -1/Access | Discovered new exit (range 6) 29353 | -1/Access | Identified exit to Surface 29360 | *** | Escaped! Last Messages --------------- 29303_ Mic. Antimatter Reactor destroyed. 29310_ Adv. Sensor Array destroyed. 29316_ ALERT: Potential suspicious activity detected, Programmers report to Access Zone 6Y. 29327_ ALERT: Suspicious intruders detected, dispatching Cutter reinforcements to area. 29329_ Knocked back. 29336_ Slug penetrates Wall. 29340_ Ovr. Armored Exoskeleton destroyed. 29340_ Adv. Heat Sink destroyed. 29340_ Knocked back. 29340_ Adv. Weight Redist. System destroyed. 29342_ Penetrated by Slug. 29344_ W-44 Eye sends out distress signal. 29346_ K-01 Serf cleans the Terminal. 29351_ The Access Shell folds into the floor. 29351_ EXIT=FOUND 29353_ EXIT=IDENTIFIED: SURFACE 29354_ Identified Exp. Gyrokinetic Inverter. 29358_ P-80 Master destroyed. Map ----- +----------------------------------------------------+ | ### +??? ?# ???????????????? | | ###+##+##+#####?? ?# ??????????????? | | # ??# ????????????? | | # ??# ???????????? | | " # ???# ??????????? | | """" # ????# ????????? | | """"" #?##????# #???????? | | """""#???????# ^ ########## #???????? | | """" #???????# #????????? #???????? | | "% #???????# #?????????? ????????? | | #??????? ??????????? ?????????? | | #??????? ?????????????????????? | | ###########"+##??????? ?????????????????????? | | ####### #??????? ?????????????????????? | | " #??????? ?????????????????????? | | #???????? ?????????????????????? | | ####### % #??????????????????????????????????? | | ?????????## ##??????????????????????????????????? | | ??????????# ##??????????????????????????????????? | | ??????????# "#??????????????????????????????????? | | ??????????# "?????#""""""""""#??????????????????? | | ??????????# #?????# #??????????????????? | | ?#######??# #?????# #??????????????????? | | ?# ?# #?????# #??????????????????? | | ?+ ?#H #?????# "" #??????????????????? | | ?# # #?????# "@ #??????????????????? | | ?# # #?????# #??????????????????? | | ?+ + #?????# #??????????????????? | | ?# # #?????# #??????????????????? | | ?# # #????## ##?????????????????? | | ?# ?# #????# #?????????????????? | | ?# ?#% #????##"" ##?????????????????? | | ########### #?????#"" #??????????????????? | | #?????#"" #??????????????????? | | ########### #?????#T #??????????????????? | | ??????????# #?????#"" #??????????????????? | | ??????????# #?????#""=* #??????????????????? | | ??????????# %#######""%[ ####### #?????????? | | ??????????# h !! #?????????? | | ??????????# #?????????? | | ??????????### ##########################?????????? | | ????????????# #??????????????????????????????????? | | ????????????# #??????????????????????????????????? | | ????????????# #??????????????????????????????????? | | ????????????# #??????????????????????????????????? | | ????????????# ??????????????????????????????????? | | ????????????# ??????????????????????????????????? | | ????????????# ??????????????????????????????????? | | ????????????# ??????????????????????????????????? | | ????????????# ??????????????????????????????????? | +----------------------------------------------------+ Best States ------------- Heat Dissipation 110 Coolant Potential 100 Energy Generation 55 Energy Capacity 700 Matter Stores 300 Matter Capacity 300 Sight Range 22 Robot Scan Range 16 Terrain Scan Density 10 Jamming Range 16 Additional Mass Support 9 Armor Coverage 800 Resistance: EM 15 Evasion (%) 65 Targeting Accuracy 8 Core Analysis 8 Recoil Reduction 2 Energy Filtering 50 Salvage Targeting 3 Offensive Hacking 22 Defensive Hacking 28 Authchip Count 4 Item Schematics ----------------- Ovr. Bore Cannon | -6/Factory | Scanalyzed Ovr. Flexi-carbon Leg | -6/Factory | Scanalyzed Ovr. Armored Exoskeleton | -6/Factory | Scanalyzed Combat Drone Bay | -6/Data Miner | Free Lgt. Regenerative Plating | -6/Data Miner | Free Enh. Flexi-carbon Leg | -6/Data Miner | Free Exp. Heat Sink | -6/Data Miner | Free Neutron Cannon | -6/Data Miner | Free Impulse Thruster | -6/Data Miner | Free Adv. Cryofiber Web | -6/Data Miner | Free Hvy. Disruptor Cannon | -6/Data Miner | Free Lrn. Sensor Array | -5/Factory | Hacked Assault Drone Bay | -5/Zhirov | Free Exp. Optical Array | -5/Zhirov | Free Imp. Arc Thrower | -5/Zhirov | Free Ovr. Phase Cannon | -4/Factory | Scanalyzed Rocket Array | -4/Factory | Scanalyzed Ovr. Antimatter Reactor | -4/Factory | Scanalyzed Robot Schematics ------------------ Y-64 Sentinel | -6/Data Miner | Free G-50 Soldier | -6/Data Miner | Free S-27 Virus | -6/Data Miner | Free Y-54 Guardian | -6/Data Miner | Free A-15 Conveyor | -6/Data Miner | Free Fabricated ------------ Ovr. Armored Exoskeleton | x1 | -6/Factory | Authchip Ovr. Armored Exoskeleton | x1 | -6/Factory | Authchip Ovr. Armored Exoskeleton | x1 | -4/Factory Repaired ---------- Lgt. Armor Plating | 53% | -10/Materials Hrd. Medium Armor Plating | 46% | -6/Factory Magnetic Acceleration Cannon | 25% | -6/Factory Hrd. Medium Armor Plating | 22% | -6/Factory Ovr. Phase Cannon | 61% | -5/Factory Cld. Plasma Cannon | 64% | -5/Factory Ovr. Armored Exoskeleton | 25% | -4/Factory Ovr. Armored Exoskeleton | 38% | -4/Factory Alien Tech Used ----------------- Integrated Dissipator Core Expander Transdimensional Reconstructor Achievements -------------- None Challenges ------------ None Game ------ Seed GhostCoilFrame Manual? 0 Play Time 02:58:50 Cumulative 1915.5 hours Start 2025.07.25 @ 01:42:23 End 2025.07.26 @ 01:31:10 Sessions 5 Manual Loads 0 Difficulty Rogue Special Mode None Game No. 1258 Rogue 1254 Adventurer 4 Explorer 0 Win Type 0 Total 249 Types 185/12/19/10/3/1/4/9/4/2 Lore% 98 Gallery% 97 Achievement% 98 Wizard Run 0 Options --------- Layout 2 ASCII 0 Keyboard 1 Movement Vi Keybinds 0 Fullscreen 0 Font 24/Terminus Map View 59x48 Zoom Use 0% Tactical HUD 1 Map Filters NONE Filters NONE Steam 1 RUN: ceda1be7-c3f3-44b1-ac83-36438e4b59df